Workbook

Sheet Инф-я
B5: Информация об организации
A7: № п/п | B7: Требуемая информация | C7: Данные об организации
A8: 1. | B8: Наименование организации в соответствии с уставом:
B9: сокращенное название организации | C9: АО "Технопарк"
B10: полное наименование организации | C10: Акционерное общество "Технопарк"
A11: 2. | B11: Муниципальное образование | C11: Ясногорский район
A12: 3. | B12: Адрес организации:
B13: юридический адрес | C13: 301032, Тульская обл., г. Ясногорск, ул. Заводская, д. 3, литера 138
B14: фактический адрес (месторасположение) | C14: 301032, Тульская обл., г. Ясногорск, ул. Заводская, д. 3, литера 138
A15: 4. | B15: ИНН | C15: 7136025990
A16: 5. | B16: КПП | C16: 713601001
A17: 6. | B17: ФИО руководителя организации | C17: Федулин Андрей Анатольевич
B18: контактный телефон/факс | C18: 8-960-599-11-00
B19: е-mail | C19: tehnopark09@yandex.ru
A20: 7. | B20: ФИО начальника ПЭО | C20: -
B21: контактный телефон/факс | C21: -
A22: 8. | B22: ФИО ответственного за электрохозяйство | C22: Антропов Виктор Васильевич
B23: контактный телефон/факс | C23: 8-961-147-99-00
A24: 9. | B24: ФИО главного бухгалтера | C24: Северьянова Оксана Павловна
B25: контактный телефон/факс | C25: 8-903-035-99-44
A26: 10. | B26: ФИО непосредственного исполнителя | C26: Сорокина Ирина Владимировна
B27: контактный телефон/факс | C27: 8-960-612-00-05
B28: е-mail | C28: zao.tp@mail.ru
A29: 11. | B29: Банковские реквизиты:
B30: расчетный счет | C30: 40702810566070100900
B31: банк | C31: Отделение № 8604 Сбербанка России г. Тула
B32: корреспондентский счет | C32: 30101810300000000608
B33: БИК | C33: 047003608
A101: 1 | B101: ООО «Радугагорэнерго»
A102: 2 | B102: МУП «Горэлектросеть» г. Муром
A103: 3 | B103: МУП «Александровэлектросеть»
A104: 4 | B104: ООО «СтройГарант»
A105: 5 | B105: ООО «Костеревские городские электрические сети»
A106: 6 | B106: ООО «Ковровэлектросетьремонт»
A107: 7 | B107: ООО «ПромРЭС»
A108: 8 | B108: ООО «ПромЭнерго» г. Судогда
A109: 9 | B109: ОАО «Энергетик» г. Карабаново
A110: 10 | B110: ООО «Электросистемы»
A111: 11 | B111: ООО «Ярцево-Энерго»
A112: 12 | B112: ПАО «Ставровский завод АТО»
A113: 13 | B113: ООО «ЭнергоАктив»

Sheet Форма 1.1
A2: Форма 1.1 - Журнал учета текущей информации о прекращении передачи электрической энергии для потребителей услуг за 2018 год
B4: ='Инф-я'!C9 -> АО "Технопарк"
A6: (наименование территориальной сетевой организации)
A7: № | B7: Период | C7: Продолжительность прекращения, час. | D7: Количество точек присоединения потребителей услуг к электрической сети электросетевой организации, шт.
A8: 1 | B8: 2 | C8: 3 | D8: 4
A9: 1 | B9: январь | C9: 0.03 | D9: 47
A10: 2 | B10: февраль | C10: - | D10: 49
A11: 3 | B11: март | C11: 1.17 | D11: 49
A12: 4 | B12: апрель | C12: 20.9 | D12: 49
A13: 5 | B13: май | C13: - | D13: 50
A14: 6 | B14: июнь | C14: - | D14: 50
A15: 7 | B15: июль | C15: - | D15: 50
A16: 8 | B16: август | C16: 2.7 | D16: 50
A17: 9 | B17: сентябрь | C17: - | D17: 50
A18: 10 | B18: октябрь | C18: 3.55 | D18: 50
A19: 11 | B19: ноябрь | C19: - | D19: 50
A20: 12 | B20: декабрь | C20: 29.11 | D20: 50
A22: Руководитель организации | C22: ='Инф-я'!$C$17 -> Федулин Андрей Анатольевич
A27: Согласно п. 14 Постановления Правительства от 31.12.2009 г. № 1220 организации предоставляют регулирующим органам до 1 апреля года, следующего за отчетным, отчетные данные, используемые при расчете фактических значений показателей надежности и качества

Sheet Форма 1.2
A2: Форма 1.2 - Расчет фактического показателя средней продолжительности прекращений передачи электрической энергии за 2018 год
A3: ='Инф-я'!C9 -> АО "Технопарк"
A4: (наименование территориальной сетевой организации)
A6: Максимальное за расчетный период | D6: Максимальное за расчетный период регулирования число точек присоединения потребителей услуг к э. сети ТСО, шт. | E6: =MAX('Форма 1.1'!D9:D20) -> 50
A7: Суммарная продолжительность прекращений передачи электрической энергии, час. (Тпр) | D7: гр. 3 формы 1.1 | E7: =SUM('Форма 1.1'!C9:C20) -> 57.46
A8: Показатель средней продолжительности прекращений передачи электрической энергии (Пп) | D8: Пп = Тпр/Nтп | E8: =IF(E6=0,0,E7/E6) -> 1.1492
B10: Руководитель организации | D10: ='Инф-я'!$C$17 -> Федулин Андрей Анатольевич

Sheet Форма 2.1
A1: Форма 2.1 - Расчет значения индикатора информативности за 2018 год
A2: ='Инф-я'!C9 -> АО "Технопарк"
A3: (наименование территориальной сетевой организации)
A6: Наименование параметра (критерия), характеризующего индикатор | B6: Ед.изм-ния | C6: Значение | E6: Ф / П * 100, % | F6: Зависи-мость | H6: Оценочный балл
C7: факти-ческое (Ф) | D7: плановое (П)
A8: 1 | C8: 2 | D8: 3 | E8: 4 | F8: 5 | H8: 6
A9: 1. Возможность личного приема заявителей и потребителей услуг уполномоченными должностными лицами территориальной сетевой организации - всего, | C9: - | D9: - | E9: - | F9: - | H9: =(H11+H12)/2 -> 2
A10: в том числе, по критериям:
A11: 1.1. Количество структурных подразделений по работе с заявителями и потребителями услуг в процентном отношении к общему количеству структурных подразделений | B11: % | C11: 1 | D11: 1 | E11: =(IF(AND(D11=0,C11=0),1,IF(AND(D11=0,C11>0),1.2,C11/D11))) -> 1 | F11: прямая | H11: =IF(E11<80%,3,IF(E11>120%,1,2)) -> 2
A12: 1.2. Количество утвержденных территориальной сетевой организацией в установленном порядке организационно-распорядительных документов по вопросам работы с заявителями и потребителями услуг - всего, шт. | B12: шт. | C12: =SUM(C14:C17) -> 13 | D12: =SUM(D14:D17) -> 13 | E12: =(IF(AND(D12=0,C12=0),1,IF(AND(D12=0,C12>0),1.2,C12/D12))) -> 1 | F12: прямая | H12: =IF(E12<80%,3,IF(E12>120%,1,2)) -> 2
A13: в том числе:
A14: а) регламенты оказания услуг и рассмотрения обращений заявителей и потребителей услуг, шт. | B14: шт. | C14: 2 | D14: 2 | E14: =(IF(AND(D14=0,C14=0),1,IF(AND(D14=0,C14>0),1.2,C14/D14))) -> 1 | F14: прямая | H14: -
A15: б) наличие положения о деятельности структурного подразделения по работе с заявителями и потребителями услуг ‎(наличие - 1, отсутствие - ‎‎0), шт.‎ | B15: шт. | C15: 1 | D15: 1 | E15: =(IF(AND(D15=0,C15=0),1,IF(AND(D15=0,C15>0),1.2,C15/D15))) -> 1 | F15: прямая | H15: -
A16: в) должностные инструкции сотрудников, обслуживающих заявителей и потребителей услуг, шт. | B16: шт. | C16: 7 | D16: 7 | E16: =(IF(AND(D16=0,C16=0),1,IF(AND(D16=0,C16>0),1.2,C16/D16))) -> 1 | F16: прямая | H16: -
A17: г) утвержденные территориальной сетевой организацией в установленном порядке формы отчетности о работе с заявителями и потребителями услуг, шт. | B17: шт. | C17: 3 | D17: 3 | E17: =(IF(AND(D17=0,C17=0),1,IF(AND(D17=0,C17>0),1.2,C17/D17))) -> 1 | F17: прямая | H17: -
A18: 2. Наличие телефонной связи для обращений потребителей услуг к уполномоченным должностным лицам территориальной сетевой организации, | C18: - | D18: - | E18: - | F18: - | H18: =(H20+H21+H22)/3 -> 2
A19: в том числе по критериям:
A20: 2.1. Наличие единого телефонного номера для приема обращений потребителей услуг (наличие - 1, отсутствие - 0) | B20: (наличие - 1, отсутствие - 0) | C20: 1 | D20: 1 | E20: =(IF(AND(D20=0,C20=0),1,IF(AND(D20=0,C20>0),1.2,C20/D20))) -> 1 | F20: прямая | H20: =IF(E20<80%,3,IF(E20>120%,1,2)) -> 2
A21: 2.2. Наличие информационно-справочной системы для автоматизации обработки обращений потребителей услуг, поступивших по телефону (наличие - 1, отсутствие - 0) | B21: (наличие - 1, отсутствие - 0) | C21: 0 | D21: 0 | E21: =(IF(AND(D21=0,C21=0),1,IF(AND(D21=0,C21>0),1.2,C21/D21))) -> 1 | F21: прямая | H21: =IF(E21<80%,3,IF(E21>120%,1,2)) -> 2
A22: 2.3. Наличие системы автоинформирования потребителей услуг по телефону, предназначенной для доведения до них типовой информации (наличие - 1, отсутствие - 0) | B22: (наличие - 1, отсутствие - 0) | C22: 1 | D22: 1 | E22: =(IF(AND(D22=0,C22=0),1,IF(AND(D22=0,C22>0),1.2,C22/D22))) -> 1 | F22: прямая | H22: =IF(E22<80%,3,IF(E22>120%,1,2)) -> 2
A23: 3. Наличие в сети Интернет сайта территориальной сетевой организации с возможностью обмена информацией с потребителями услуг посредством электронной почты (наличие - 1, отсутствие - 0) | B23: (наличие - 1, отсутствие - 0) | C23: 1 | D23: 1 | E23: =(IF(AND(D23=0,C23=0),1,IF(AND(D23=0,C23>0),1.2,C23/D23))) -> 1 | F23: прямая | H23: =IF(E23<80%,3,IF(E23>120%,1,2)) -> 2
A24: 4. Проведение мероприятий по доведению до сведения потребителей услуг необходимой информации, в том числе путем ее размещения в сети Интернет, на бумажных носителях или иными доступными способами (проведение - 1, отсутствие - 0) | B24: (наличие - 1, отсутствие - 0) | C24: 1 | D24: 1 | E24: =(IF(AND(D24=0,C24=0),1,IF(AND(D24=0,C24>0),1.2,C24/D24))) -> 1 | F24: прямая | H24: =IF(E24<80%,3,IF(E24>120%,1,2)) -> 2
A25: 5. Простота и доступность схемы обжалования потребителями услуг действий должностных лиц территориальной сетевой организации, по критерию | C25: - | D25: - | E25: - | F25: - | H25: =H26 -> 2
A26: 5.1. Общее количество обращений потребителей услуг о проведении консультаций по порядку обжалования действий (бездействия) территориальной сетевой организации в ходе исполнения своих функций в процентах от общего количества поступивших обращений | B26: % | C26: 0 | D26: 0 | E26: =(IF(AND(D26=0,C26=0),1,IF(AND(D26=0,C26>0),1.2,C26/D26))) -> 1 | F26: обратная | H26: =IF(E26<80%,1,IF(E26>120%,3,2)) -> 2
A27: 6. Степень полноты, актуальности и достоверности предоставляемой потребителям услуг информации о деятельности территориальной сетевой организации - всего, | C27: - | D27: - | E27: - | F27: - | H27: =(H29+H30)/2 -> 2
A28: в том числе по критериям:
A29: 6.1. Общее количество обращений потребителей услуг о проведении консультаций по вопросам деятельности территориальной сетевой организации в процентах от общего количества поступивших обращений | B29: % | C29: 1 | D29: 1 | E29: =(IF(AND(D29=0,C29=0),1,IF(AND(D29=0,C29>0),1.2,C29/D29))) -> 1 | F29: обратная | H29: =IF(E29<80%,1,IF(E29>120%,3,2)) -> 2
A30: 6.2. Количество обращений потребителей услуг с указанием на отсутствие необходимой информации, которая должна быть раскрыта территориальной сетевой организацией в соответствии с нормативными правовыми актами, в процентах от общего количества поступивших обращений | B30: % | C30: 0 | D30: 0 | E30: =(IF(AND(D30=0,C30=0),1,IF(AND(D30=0,C30>0),1.2,C30/D30))) -> 1 | F30: обратная | H30: =IF(E30<80%,1,IF(E30>120%,3,2)) -> 2
A31: 7. Итого по индикатору информативности (Ин) | B31: - | C31: - | D31: - | E31: - | F31: - | H31: =(H9+H18+H23+H24+H25+H27)/6 -> 2
A33: Руководитель организации | C33: ='Инф-я'!$C$17 -> Федулин Андрей Анатольевич

Sheet Форма 2.2
A3: Форма 2.2 - Расчет значения индикатора исполнительности за 2018 год
A4: ='Инф-я'!C9 -> АО "Технопарк"
B5: (наименование территориальной сетевой организации)
A7: Наименование параметра (показателя), характеризующего индикатор | C7: Ед.изм-ния | D7: Значение | F7: Ф / П * 100, % | G7: Зависи-мость | H7: Оценочный балл
D8: факти-ческое (Ф) | E8: плановое (П)
A9: 1 | D9: 2 | E9: 3 | F9: 4 | G9: 5 | H9: 6
B10: 1. Соблюдение сроков по процедурам взаимодействия с потребителями услуг (заявителями) - всего | D10: - | E10: - | F10: - | G10: - | H10: =ROUND((H12+H13+H16)/3,3) -> 0.417
B11: в том числе, по критериям:
B12: 1.1. Среднее время, затраченное территориальной сетевой организацией на направление проекта договора оказания услуг по передаче электрической энергии потребителю услуг (заявителю), дней | C12: дней | D12: 7 | E12: 7 | F12: =(IF(AND(E12=0,D12=0),1,IF(AND(E12=0,D12>0),1.2,D12/E12))) -> 1 | G12: обратная | H12: =IF(F12<80%,0.25,IF(F12>120%,0.75,0.5)) -> 0.5
B13: 1.2. Среднее время, необходимое для оборудования точки поставки приборами учета с момента подачи заявления потребителем услуг: | C13: дней | D13: - | E13: - | F13: =(F14+F15)/2 -> 0 | G13: обратная | H13: =IF(F13<80%,0.25,IF(F13>120%,0.75,0.5)) -> 0.25
B14: а) для физических лиц, включая индивидуальных предпринимателей, и юридических лиц - субъектов малого и среднего предпринимательства, дней | D14: 15 | E14: 15 | G14: - | H14: -
B15: б) для остальных потребителей услуг, дней | D15: 15 | E15: 15 | G15: - | H15: -
B16: 1.3. Количество случаев отказа от заключения и случаев расторжения потребителем услуг договоров оказания услуг по передаче электрической энергии, процентов от общего количества заключенных территориальной сетевой организацией договоров с потребителями услуг (заявителями), кроме физических лиц | D16: 0 | E16: 0 | F16: =(IF(AND(E16=0,D16=0),1,IF(AND(E16=0,D16>0),1.2,D16/E16))) -> 1 | G16: обратная | H16: =IF(F16<80%,0.25,IF(F16>120%,0.75,0.5)) -> 0.5
B17: 2. Соблюдение требований нормативных правовых актов Российской Федерации по поддержанию качества электрической энергии, по критерию | D17: - | E17: - | F17: - | G17: - | H17: =(H18) -> 0.5
B18: 2.1. Количество обращений потребителей услуг с указанием на ненадлежащее качество электрической энергии, процентов от общего количества поступивших обращений | C18: дней | D18: 0 | E18: 0 | F18: =(IF(AND(E18=0,D18=0),1,IF(AND(E18=0,D18>0),1.2,D18/E18))) -> 1 | G18: обратная | H18: =IF(F18<80%,0.25,IF(F18>120%,0.75,0.5)) -> 0.5
B19: 3. Наличие взаимодействия с потребителями услуг при выводе оборудования в ремонт и (или) из эксплуатации | D19: - | E19: - | F19: - | G19: - | H19: =(H21+H22)/2 -> 0.5
B20: в том числе, по критериям:
B21: 3.1. Наличие (отсутствие) установленной процедуры согласования с потребителями услуг графиков вывода электросетевого оборудования в ремонт и (или) из эксплуатации (наличие - 1, отсутствие - 0) | C21: % | D21: 1 | E21: 1 | F21: =(IF(AND(E21=0,D21=0),1,IF(AND(E21=0,D21>0),1.2,D21/E21))) -> 1 | G21: прямая | H21: =IF(F21<80%,0.75,IF(F21>120%,0.25,0.5)) -> 0.5
B22: 3.2. Количество обращений потребителей услуг с указанием на несогласие введения предлагаемых территориальной сетевой организацией графиков вывода электросетевого оборудования в ремонт и (или) из эксплуатации, процентов от общего количества поступивших обращений, кроме физических лиц | D22: 0 | E22: 0 | F22: =(IF(AND(E22=0,D22=0),1,IF(AND(E22=0,D22>0),1.2,D22/E22))) -> 1 | G22: обратная | H22: =IF(F22<80%,0.25,IF(F22>120%,0.75,0.5)) -> 0.5
B23: 4. Соблюдение требований нормативных правовых актов по защите персональных данных потребителей услуг (заявителей), по критерию | D23: - | E23: - | F23: - | G23: - | H23: =H24 -> 0.2
B24: 4.1. Количество обращений потребителей услуг (заявителей) с указанием на неправомерность использования персональных данных потребителей услуг (заявителей), процентов от общего количества поступивших обращений | C24: % | D24: 0 | E24: 0 | F24: =(IF(AND(E24=0,D24=0),1,IF(AND(E24=0,D24>0),1.2,D24/E24))) -> 1 | G24: обратная | H24: =IF(F24<80%,0.1,IF(F24>120%,0.3,0.2)) -> 0.2
B25: 5. Итого по индикатору исполнительности (Ис) | C25: - | D25: - | E25: - | F25: - | G25: - | H25: =(H10+H17+H19+H23)/4 -> 0.40425
B28: Руководитель организации | D28: ='Инф-я'!$C$17 -> Федулин Андрей Анатольевич

Sheet форма 2.3
A3: Форма 2.3 - Расчет значения индикатора результативности обратной связи за 2018 год
A4: ='Инф-я'!C9 -> АО "Технопарк"
A5: (наименование территориальной сетевой организации)
A7: Наименование параметра (показателя), характеризующего индикатор | B7: Ед.изм-ния | C7: Значение | E7: Ф / П * 100, % | F7: Зависи-мость | H7: Оценочный балл
C8: факти-ческое (Ф) | D8: плановое (П)
C9: 2 | D9: 3 | E9: 4 | F9: 5 | H9: 6
A10: 1. Наличие структурного подразделения территориальной сетевой организации по рассмотрению, обработке и принятию мер по обращениям потребителей услуг (наличие - 1, отсутствие - 0) | B10: (наличие - 1, отсутствие - 0) | C10: 1 | D10: 1 | E10: =(IF(AND(D10=0,C10=0),1,IF(AND(D10=0,C10>0),1.2,C10/D10))) -> 1 | F10: прямая | H10: =IF(E10<80%,3,IF(E10>120%,1,2)) -> 2
A11: 2. Степень удовлетворения обращений потребителей услуг | C11: - | D11: - | E11: - | F11: - | H11: =(H13+H14+H15+H16+H17+H18)/6 -> 2
A12: в том числе по критериям:
A13: 2.1. Общее количество обращений потребителей услуг с указанием на ненадлежащее качество услуг по передаче электрической энергии и обслуживание, в процентах от общего количества поступивших обращений | B13: % | C13: 0 | D13: 0 | E13: =(IF(AND(D13=0,C13=0),1,IF(AND(D13=0,C13>0),1.2,C13/D13))) -> 1 | F13: обратная | H13: =IF(E13<80%,1,IF(E13>120%,3,2)) -> 2
A14: 2.2. Количество принятых мер по результатам рассмотрения обращений потребителей услуг с указанием на ненадлежащее качество услуг по передаче электрической энергии и обслуживание, в процентах от общего количества поступивших обращений | B14: % | C14: 0 | D14: 0 | E14: 1 | F14: прямая | H14: =IF(E14<80%,3,IF(E14>120%,1,2)) -> 2
A15: 2.3. Количество обращений, связанных с неудовлетворенностью принятыми мерами, указанными в п. 2.2 настоящей формы, поступивших от потребителей услуг в течение 30 рабочих дней после завершения мероприятий, указанных в п. 2.2 настоящей формы, в процентах от общего количества поступивших обращений | B15: % | C15: 0 | D15: 0 | E15: 1 | F15: обратная | H15: =IF(E15<80%,1,IF(E15>120%,3,2)) -> 2
A16: 2.4. Количество обращений потребителей услуг с указанием на ненадлежащее качество услуг, оказываемых территориальной сетевой организацией, поступивших в соответствующий контролирующий орган исполнительной власти, в процентах от общего количества поступивших обращений | B16: % | C16: 0 | D16: 0 | E16: 1 | F16: обратная | H16: =IF(E16<80%,1,IF(E16>120%,3,2)) -> 2
A17: 2.5. Количество отзывов и предложений по вопросам деятельности территориальной сетевой организации, поступивших через обратную связь, в процентах от общего количества поступивших обращений | B17: % | C17: 0 | D17: 0 | E17: 1 | F17: прямая | H17: =IF(E17<80%,3,IF(E17>120%,1,2)) -> 2
A18: 2.6. Количество реализованных изменений в деятельности организации, направленных на повышение качества обслуживания потребителей услуг, шт. | B18: шт. | C18: 2 | D18: 2 | E18: 1 | F18: прямая | H18: =IF(E18<80%,3,IF(E18>120%,1,2)) -> 2
A19: 3. Оперативность реагирования на обращения потребителей услуг - всего, | C19: - | D19: - | E19: - | F19: - | H19: =(H21+H22)/2 -> 2
A20: в том числе по критериям:
A21: 3.1. Средняя продолжительность времени принятия мер по результатам обращения потребителя услуг, дней | B21: дней | C21: 3 | D21: 3 | E21: =(IF(AND(D21=0,C21=0),1,IF(AND(D21=0,C21>0),1.2,C21/D21))) -> 1 | F21: обратная | H21: =IF(E21<80%,1,IF(E21>120%,3,2)) -> 2
A22: 3.2. Взаимодействие территориальной сетевой организации с потребителями услуг с целью получения информации о качестве обслуживания, реализованное посредством: | C22: - | D22: - | E22: - | F22: - | H22: =(H23+H24+H25)/3 -> 2
A23: а) письменных опросов, шт. на 1000 потребителей услуг | B23: шт. на 1000 потребителей услуг | C23: 0 | D23: 0 | E23: 1 | F23: прямая | H23: =IF(E23<80%,3,IF(E23>120%,1,2)) -> 2
A24: б) электронной связи через сеть Интернет, шт. на 1000 потребителей услуг | B24: шт. на 1000 потребителей услуг | C24: 0 | D24: 0 | E24: 1 | F24: прямая | H24: =IF(E24<80%,3,IF(E24>120%,1,2)) -> 2
A25: в) системы автоинформирования,шт. на 1000 потребителей услуг | B25: шт. на 1000 потребителей услуг | C25: 0 | D25: 0 | E25: 1 | F25: прямая | H25: =IF(E25<80%,3,IF(E25>120%,1,2)) -> 2
A26: 4. Индивидуальность подхода к потребителям услуг льготных категорий, по критерию | C26: - | D26: - | E26: - | F26: - | H26: =H27 -> 2
A27: 4.1. Количество обращений потребителей услуг льготных категорий с указанием на неудовлетворительность качества их обслуживания, шт. на 1000 потребителей услуг | B27: шт. на 1000 потребителей услуг | C27: 0 | D27: 0 | E27: 1 | F27: обратная | H27: =IF(E27<80%,1,IF(E27>120%,3,2)) -> 2
A28: 5. Оперативность возмещения убытков потребителям услуг при несоблюдении территориальной сетевой организацией обязательств, предусмотренных нормативными правовыми актами и договорами | C28: - | D28: - | E28: - | F28: - | H28: =(H30+H31)/2 -> 2
A29: в том числе по критериям:
A30: 5.1. Средняя продолжительность времени на принятие территориальной сетевой организацией мер по возмещению потребителю услуг убытков, месяцев | B30: месяцев | C30: 0 | D30: 0 | E30: =(IF(AND(D30=0,C30=0),1,IF(AND(D30=0,C30>0),1.2,C30/D30))) -> 1 | F30: обратная | H30: =IF(E30<80%,1,IF(E30>120%,3,2)) -> 2
A31: 5.2. Доля потребителей услуг, получивших возмещение убытков, возникших в результате неисполнения (ненадлежащего исполнения) территориальной сетевой организацией своих обязательств, от числа потребителей, в пользу которых было вынесено судебное решение, или возмещение было произведено во внесудебном порядке, % | B31: % | C31: 0 | D31: 0 | E31: 1 | F31: прямая | H31: =IF(E31<80%,3,IF(E31>120%,1,2)) -> 2
A32: 6. Итого по индикатору результативности обратной связи (Рс) | B32: - | C32: - | D32: - | E32: - | F32: - | H32: =(H10+H11+H19+H26+H28)/5 -> 2
A36: Руководитель организации | C36: ='Инф-я'!$C$17 -> Федулин Андрей Анатольевич

Sheet форма 2.4
A2: Форма 2.4 - Расчет фактического значения показателя уровня качества оказываемых услуг территориальной (прочей) сетевой организацией за 2018 год
A4: ='Инф-я'!C9 -> АО "Технопарк"
A6: (наименование территориальной сетевой организации)
B8: Ед.изм-ния
A9: Предлагаемые плановые значения параметров (критериев), характеризующих индикаторы качества ** | C9: 2018
C10: (год)
A11: Ин (индикатор информативности) | C11: ='Форма 2.1'!H31 -> 2
A12: Ис ( индикатор исполнительности) | C12: =ROUND('Форма 2.2'!H25,3) -> 0.404
A13: Рс (индикатор результативности обратной связи) | C13: ='форма 2.3'!H32 -> 2
A14: Фактическое значение показателя уровня качества оказываемых услуг территориальной сетевой организации | C14: =0.1*C11+0.7*C12+0.2*C13 -> 0.8828
A16: Руководитель организации | B16: ='Инф-я'!$C$17 -> Федулин Андрей Анатольевич

Sheet форма 3
A1: Формы, используемые для расчета значений показателей уровня качества оказываемых услуг
A5: ='Инф-я'!C9 -> АО "Технопарк"
D6: Форма 3.1
A7: Отчетные данные для расчета значения показателя качества рассмотрения заявок на технологическое присоединение к сети за 2018 год
A8: № п/п | B8: Наименование | D8: Значение
A9: 1 | B9: 2 | D9: 3
A10: 1 | B10: Число заявок на технологическое присоединение к сети, поданных в соответствии с требованиями нормативных правовых актов, по которым сетевой организацией в соответствующий расчетный период направлен проект договора об осуществлении технологического присоединения заявителей к сети, шт. (Nзаяв_тпр) | D10: 3
A11: 2 | B11: Число заявок на технологическое присоединение к сети, поданных в соответствии с требованиями нормативных правовых актов, по которым сетевой организацией в соответствующий расчетный период направлен проект договора об осуществлении технологического присоединения заявителей к сети с нарушением установленных сроков его направления, шт. (Nнсзаяв_тпр) | D11: 0
A12: max (1, Nзаяв_тпр - Nнсзаяв_тпр) | D12: =MAX(1,D10-D11) -> 3
A13: Пзаяв_тпр | D13: =IF(D10="",1,IF(D10="0",1,D10/D12)) -> 1
D16: Форма 3.2
A17: Отчетные данные для расчета значения показателя качества исполнения договоров об осуществлении технологического присоединения заявителей к сети за 2018 год
A18: № п/п | B18: Наименование | D18: Значение
A19: 1 | B19: 2 | D19: 3
A20: 1 | B20: Число договоров об осуществлении технологического присоединения заявителей к сети, исполненных в соответствующем расчетном периоде, по которым имеется подписанный сторонами акт о технологическом присоединении, шт. (Nсд_тпр) | D20: 2
A21: 2 | B21: Число договоров об осуществлении технологического присоединения заявителей к сети, исполненных в соответствующем расчетном периоде, по которым имеется подписанный сторонами акт о технологическом присоединении, по которым произошло нарушение установленных сроков технологического присоединения, шт. (Nнссд_тпр) | D21: 0
A22: max (1, Nсд_тпр - Nнссд_тпр) | D22: =MAX(1,D20-D21) -> 2
A23: Пнс_тпр | D23: =IF(D20="",1,IF(D20="0",1,D20/D22)) -> 1
D26: Форма 3.3
A27: Отчетные данные для расчета значения показателя соблюдения антимонопольного законодательства при технологическом присоединении заявителей к электрическим сетям сетевой организации за 2018 год
A28: № п/п | B28: Наименование | D28: Значение
A29: 1 | B29: 2 | D29: 3
A30: 1 | B30: Число вступивших в законную силу решений антимонопольного органа и (или) суда об установлении нарушений сетевой организацией требований антимонопольного законодательства Российской Федерации в части оказания услуг по технологическому присоединению в соответствующем расчетном периоде, шт. (Nн_тпр) | D30: 0
A31: 2 | B31: Общее число заявок на технологическое присоединение к сети, поданных заявителями в соответствующий расчетный период, в десятках шт. без округления (Nочз_тпр) | D31: 1
A32: max (1, Nочз_тпр - Nн_тпр) | D32: =MAX(1,D31-D30) -> 1
A33: Пнпа_тпр | D33: =IF(D31="",1,IF(D31="0",1,D31/D32)) -> 1
A36: Показатель уровня качества осуществляемого технологического присоединения к сети за 2018 год, Птпр
A37: Птпр | D37: =0.4*D13+0.4*D23+0.2*D33 -> 1
A39: Руководитель организации | C39: ='Инф-я'!$C$17 -> Федулин Андрей Анатольевич

Sheet Форма 8.1 предприятие
A1: Начиная с 2018 года, если сетевая организация не предоставила информацию в соответствии с разделом 6 настоящих методических указаний, Коэффициент достижения (недостижения, перевыполнения) уровня надежности оказываемых услуг будет равен -1
A2: Форма_8.1 - Журнал учета данных первичной информации по всем прекращениям передачи электрической энергии произошедших на объектах сетевой организации за 2018 год
A3: АО "Технопарк"
A4: Наименование электросетевой организации
A6: Данные о факте прекращения передачи электрической энергии | J6: Данные о масштабе прекращения передачи электрической энергии в сетевой организации | W6: Перечень смежных сетевых организаций, затронутых прекращением передачи электрической энергии | X6: Данные о причинах прекращения передачи электрической энергии и их расследовании | AA6: Учет в показателях надежности, в т.ч. индикативных показателях надежности (0 - нет, 1 - да) 3
A7: Номер прекращения передачи электрической энергии / Номер итоговой строки | B7: Наименование структурной единицы сетевой организации 1 | C7: Вид объекта: КЛ, ВЛ, КВЛ, ПС, ТП, РП | D7: Диспетчерское наименование объекта электросетевого хозяйства сетевой организации, в результате отключения которой произошло прекращение передачи электроэнергии потребителям услуг | E7: Высший класс напряжения отключенного оборудования сетевой организации, Кв | F7: Время и дата начала прекращения передачи электрической энергии (часы, минуты, ГГГГ.ММ.ДД) | G7: Время и дата восстановления режима потребления электрической энергии потребителей услуг (часы, минуты, ГГГГ.ММ.ДД) | H7: Вид прекращения передачи электроэнергии (П, А, В) 2 | I7: Продолжительность прекращения передачи электрической энергии, час. | J7: Перечень объектов электросетевого хозяйства, отключение которых привело к прекращению передачи электрической энергии потребителям услуг (ПС, ТП, РП, ВЛ, КЛ) | K7: Перечень потребителей 1-й и 2-й категорий надежности, в отношении которых произошло полное ограничение режима потребления электрической энергии | L7: Перечень потребителей 1-й и 2-й категорий надежности, в отношении которых произошло частичное ограничение режима потребления электрической энергии | M7: Количество точек поставки потребителей услуг сетевой организации, в отношении которых произошел перерыв электроснабжения, шт., в том числе: | V7: Суммарный объем фактической нагрузки (мощности) на присоединениях потребителей услуг, по которым произошло прекращение передачи электрической энергии на момент возникновения такого события, кВт | X7: Номер и дата акта расследования технологического нарушения, записи в оперативном журнале | Y7: Код организационной причины аварии | Z7: Код технической причины повреждения оборудования
M8: Всего | N8: в разделении категорий надежности потребителей электрической энергии | Q8: в разделении уровней напряжения ЭПУ потребителя электрической энергии | U8: Смежные сетевые организации и производители электрической энергии
N9: 1-я категория надежности | O9: 2-я категория надежности | P9: 3-я категория надежности | Q9: BH (110 кВ и выше) | R9: CH1 (35 кВ) | S9: CH2 (6-20 кВ) | T9: HH (0,22-1 кВ)
A10: 1 | B10: 2 | C10: 3 | D10: 4 | E10: 5 | F10: 6 | H10: 8 | I10: 9 | J10: 10 | K10: 11 | L10: 12 | M10: 13 | N10: 14 | O10: 15 | P10: 16 | Q10: 17 | R10: 18 | S10: 19 | T10: 20 | U10: 21 | V10: 22 | W10: 23 | X10: 24 | Y10: 25 | Z10: 26 | AA10: 27
A11: 1 | B11: АО "Технопарк" | C11: ПС | D11: ЭВ ПС № 234 "Насосная" | E11: 110 | F11: 2018-01-31T07:25:00 | G11: 2018-01-31T07:27:00 | H11: В | I11: =(G11-F11)*24 -> 0.03333333327 | J11: ПС 110кВ, ТП 6кВ, КЛ 6кВ | K11: 0 | L11: 0 | M11: =N11+O11+P11+U11 -> 36 | N11: 0 | O11: 0 | P11: 36 | Q11: 0 | R11: 0 | S11: 19 | T11: 17 | V11: 2100 | X11: № 1 от 31.01.2018 | Y11: 3.4.7.3 | AA11: 1 | AB11: =(IF(AND(H11=$H$26,AA11=1),M11*I11,0)) -> 1.199999998 | AC11: =IF(H11=$H$24,M11*I11,0) -> 0
A12: 2 | B12: АО "Технопарк" | C12: ТП | D12: Ячейка № 14 Ру 6кВ РТП № 3 | E12: 6 | F12: 2018-03-03T09:30:00 | G12: 2018-03-03T10:40:00 | H12: В | I12: =(G12-F12)*24 -> 1.166666667 | J12: ТП 6кВ | K12: 0 | L12: 1 | M12: 1 | N12: 0 | O12: 1 | P12: 0 | Q12: 0 | R12: 0 | S12: 0 | T12: 1 | V12: 484 | X12: № 2 от 03.03.2018 | Y12: 3.4.9.3 | AA12: 1 | AB12: =(IF(AND(H12=$H$26,AA12=1),M12*I12,0)) -> 1.166666667 | AC12: 0
A13: 3 | B13: АО "Технопарк" | C13: КЛ | D13: КЛ 6кВ от ПС № 234 "Насосная" до ТП № 8 | E13: 6 | F13: 2018-04-06T12:01:00 | G13: 2018-04-07T08:40:00 | H13: В | I13: 20.65 | J13: КЛ 6кВ, ТП 6кВ | K13: 0 | L13: 0 | M13: 1 | N13: 0 | O13: 0 | P13: 1 | Q13: 0 | R13: 0 | S13: 0 | T13: 1 | V13: 5 | X13: № 3 от 07.04.2018 | Z13: 4.12 | AA13: 1 | AB13: 20.65 | AC13: 0
A14: 4 | B14: АО "Технопарк" | C14: КЛ | D14: КЛ 6кВ от ПС № 234 "Насосная" до РТП № 1 | E14: 6 | F14: 2018-04-23T14:30:00 | G14: 2018-04-23T14:45:00 | H14: В | I14: 0.2500000001 | J14: КЛ 6кВ | K14: 0 | L14: 0 | M14: 2 | N14: 0 | O14: 0 | P14: 2 | Q14: 0 | R14: 0 | S14: 2 | T14: 0 | V14: 300 | X14: № 4 от 23.04.2018 | Y14: 3.4.8.1 | AA14: 1 | AB14: 0.5000000002 | AC14: 0
A15: 5 | B15: АО "Технопарк" | C15: КЛ | D15: КЛ 6кВ от РТП № 3 до РТП № 1 | E15: 6 | F15: 2018-08-03T05:29:00 | G15: 2018-08-03T06:40:00 | H15: В | I15: 1.183333333 | J15: КЛ 6кВ | K15: 0 | L15: 0 | M15: 2 | N15: 0 | O15: 0 | P15: 2 | Q15: 0 | R15: 0 | S15: 1 | T15: 1 | V15: 40 | X15: № 5 от 03.08.2018 | Z15: 4.12 | AA15: 1 | AB15: 2.366666667 | AC15: 0
A16: 6 | B16: АО "Технопарк" | C16: ТП | D16: РТП № 3 РУ 6кВ яч. № 3 | E16: 6 | F16: 2018-08-16T08:09:00 | G16: 2018-08-16T09:40:00 | H16: В | I16: 1.516666667 | J16: ТП 6кВ | K16: 0 | L16: 0 | M16: 1 | N16: 0 | O16: 0 | P16: 1 | Q16: 0 | R16: 0 | S16: 1 | T16: 0 | V16: 300 | X16: № 6 от16.08.2018 | Y16: 3.4.9.3 | AA16: 1 | AB16: 1.516666667 | AC16: 0
A17: 7 | B17: АО "Технопарк" | C17: КЛ | D17: КЛ 6кВ от яч. № 10 РУ 6кВ ПС № 234 "Насосная" до ТП 7-9 | E17: 6 | F17: 2018-10-22T08:35:00 | G17: 2018-10-22T10:20:00 | H17: В | I17: 1.75 | J17: КЛ 6кВ | K17: 0 | L17: 0 | M17: 1 | N17: 0 | O17: 0 | P17: 1 | Q17: 0 | R17: 0 | S17: 1 | T17: 0 | V17: 97 | X17: № 7 от 22.10.2018 | Z17: 4.12 | AA17: 1 | AB17: 1.75 | AC17: 0
A18: 8 | B18: АО "Технопарк" | C18: КЛ | D18: Панель № 10 РУ 0,4кВ ТП № 13 присоединение сетевой насос № 3 АО "РГК-1" | E18: 0,38 | F18: 2018-10-23T06:54:00 | G18: 2018-10-23T08:42:00 | H18: В | I18: 1.8 | J18: КЛ 0,4кВ | K18: 0 | L18: 1 | M18: 1 | N18: 0 | O18: 1 | P18: 0 | Q18: 0 | R18: 0 | S18: 0 | T18: 1 | V18: 160 | X18: № 8 от 23.10.2018 | Y18: 3.4.14 | AA18: 1 | AB18: 1.8 | AC18: 0
A19: 9 | B19: АО "Технопарк" | C19: ТП | D19: ТП № 25 | E19: 6 | F19: 2018-12-07T09:15:00 | G19: 2018-12-07T13:20:00 | H19: В | I19: 4.083333333 | J19: ТП 6кВ | K19: 0 | L19: 0 | M19: 3 | N19: 0 | O19: 0 | P19: 3 | Q19: 0 | R19: 0 | S19: 0 | T19: 3 | V19: 60 | X19: №9 от 07.12.2018 | Y19: 3.4.9.3 | AA19: 1 | AB19: 12.25 | AC19: 0
A20: 10 | B20: АО "Технопарк" | C20: КЛ | D20: КЛ 0,4кВ от РУ 0,4кВ РТП № 1 до киоска "Роспечать" | E20: 0,38 | F20: 2018-12-10T15:23:00 | G20: 2018-12-11T13:40:00 | H20: В | I20: 22.28333333 | J20: КЛ 0,4кВ | K20: 0 | L20: 0 | M20: 1 | N20: 0 | O20: 0 | P20: 1 | Q20: 0 | R20: 0 | S20: 0 | T20: 1 | V20: 2.5 | X20: № 10 от 10.12.2018 | Z20: 4.13 | AA20: 1 | AB20: 22.28333333 | AC20: 0
A21: 11 | B21: АО "Технопарк" | C21: КЛ | D21: КЛ 0,4кВ от ТП № 21 до РЩ 0,4кВ № 2 | E21: 0,38 | F21: 2018-12-27T08:55:00 | G21: 2018-12-27T11:40:00 | H21: В | I21: 2.75 | J21: КЛ 0,4кВ | K21: 0 | L21: 0 | M21: 1 | N21: 0 | O21: 0 | P21: 1 | Q21: 0 | R21: 0 | S21: 0 | T21: 1 | V21: 5 | X21: № 11 от 27.12.2018 | Z21: 4.12 | AA21: 1 | AB21: 2.75 | AC21: 0
A22: Добавить
A23: Итого по всем прекращениям передачи электрической энергии за отчетный период: | C23: х | D23: х | E23: х | F23: х | H23: И | I23: =SUBTOTAL(9,I11:I21) -> 57.46666667 | J23: х | K23: х | L23: х | M23: =SUBTOTAL(9,M11:M21) -> 50 | N23: =SUBTOTAL(9,N11:N21) -> 0 | O23: 2 | P23: 48 | Q23: 0 | R23: 0 | S23: 24 | T23: 26 | U23: =SUBTOTAL(9,U11:U16) -> 0 | V23: =SUBTOTAL(9,V11:V21) -> 3553.5 | W23: =SUBTOTAL(9,W11:W16) -> 0 | X23: х | Y23: х | Z23: х | AA23: 0;1 | AB23: =SUM(AB11:AB22) -> 68.23333333 | AC23: =SUM(AC11:AC22) -> 0
A24: - по ограничениям, связанным с проведением ремонтных работ | C24: х | D24: х | E24: х | F24: х | H24: П | I24: =SUMIF(H$11:H$16,H24,I$11:I$16) -> 0 | J24: х | K24: х | L24: х | M24: =SUMIF(H$11:H$16,H24,M$11:M$16) -> 0 | N24: =SUMIF(H$11:H$16,H24,N$11:N$16) -> 0 | O24: =SUMIF(H$11:H$16,H24,O$11:O$16) -> 0 | P24: =SUMIF(H$11:H$16,H24,P$11:P$16) -> 0 | Q24: =SUMIF(H$11:H$16,H24,Q$11:Q$16) -> 0 | R24: =SUMIF(H$11:H$16,H24,R$11:R$16) -> 0 | S24: =SUMIF(H$11:H$16,H24,S$11:S$16) -> 0 | T24: =SUMIF(H$11:H$16,H24,T$11:T$16) -> 0 | U24: =SUMIF(H$11:H$16,H24,U$11:U$16) -> 0 | V24: =SUMIF(H$11:H$16,H24,V$11:V$16) -> 0 | W24: =SUMIF(H$11:H$16,H24,W$11:W$16) -> 0 | X24: х | Y24: х | Z24: х | AA24: 0 | AB24: х | AC24: х
A25: - по аварийным ограничениям | C25: х | D25: х | E25: х | F25: х | H25: А | I25: =SUMIF(H$11:H$16,H25,I$11:I$16) -> 0 | J25: х | K25: х | L25: х | M25: =SUMIF(H$11:H$16,H25,M$11:M$16) -> 0 | N25: =SUMIF(H$11:H$16,H25,N$11:N$16) -> 0 | O25: =SUMIF(H$11:H$16,H25,O$11:O$16) -> 0 | P25: =SUMIF(H$11:H$16,H25,P$11:P$16) -> 0 | Q25: =SUMIF(H$11:H$16,H25,Q$11:Q$16) -> 0 | R25: =SUMIF(H$11:H$16,H25,R$11:R$16) -> 0 | S25: =SUMIF(H$11:H$16,H25,S$11:S$16) -> 0 | T25: =SUMIF(H$11:H$16,H25,T$11:T$16) -> 0 | U25: =SUMIF(H$11:H$16,H25,U$11:U$16) -> 0 | V25: =SUMIF(H$11:H$16,H25,V$11:V$16) -> 0 | W25: =SUMIF(H$11:H$16,H25,W$11:W$16) -> 0 | X25: х | Y25: х | Z25: х | AA25: 1 | AB25: х | AC25: х
A26: - по внерегламентным отключениям | C26: х | D26: х | E26: х | F26: х | H26: В | I26: =SUMIF(H$11:H$21,H26,I$11:I$21) -> 57.46666667 | J26: х | K26: х | L26: х | M26: =SUMIF(H$11:H$16,H26,M$11:M$16) -> 43 | N26: =SUMIF(H$11:H$16,H26,N$11:N$16) -> 0 | O26: 2 | P26: =SUMIF(H$11:H$16,H26,P$11:P$16) -> 42 | Q26: =SUMIF(H$11:H$16,H26,Q$11:Q$16) -> 0 | R26: =SUMIF(H$11:H$16,H26,R$11:R$16) -> 0 | S26: =SUMIF(H$11:H$16,H26,S$11:S$16) -> 23 | T26: =SUMIF(H$11:H$16,H26,T$11:T$16) -> 20 | U26: =SUMIF(H$11:H$16,H26,U$11:U$16) -> 0 | V26: =SUM(V11:V21) -> 3553.5 | W26: =SUMIF(H$11:H$16,H26,W$11:W$16) -> 0 | X26: х | Y26: х | Z26: х | AA26: 0;1 | AB26: х | AC26: х
A27: - по внерегламентным отключениям,учитываемым при расчете показателей надежности, в том числе индикативных показателей надежности | C27: х | D27: х | E27: х | F27: х | H27: В1 | I27: 0 | J27: х | K27: х | L27: х | M27: 0 | N27: =SUM((AA11:AA16=1)*(H11:H16=$H$26)*N11:N16) -> 0 | O27: 0 | P27: 0 | Q27: =SUM((AA11:AA16=1)*(H11:H16=$H$26)*Q11:Q16) -> 0 | R27: =SUM((AA11:AA16=1)*(H11:H16=$H$26)*R11:R16) -> 0 | S27: 0 | T27: 0 | U27: =SUM((AA11:AA16=1)*(H11:H16=$H$26)*U11:U16) -> 0 | V27: 0 | W27: =SUM((AA11:AA16=1)*(H11:H16=$H$26)*W11:W16) -> 0 | X27: х | Y27: х | Z27: х | AA27: 0 | AB27: х | AC27: х
A32: Директор | O32: А.А. Федулин
A33: Должность | O33: Ф. И. О.
A35: Примечание
A36: 1 Указываются наименования производственных отделений или предприятий электрических сетей.
A37: 2 "П" - плановое отключение, связанное с необходимостью проведения ремонтно-восстановительных работ в соответствии с разделом III Правил полного и (или) частичного ограничения режима потребления электрической энергии; "А" - аварийное ограничение, связанное с введением в действие графиков аварийного ограничения режима потребления в соответствии с пунктами 40-46 Правил полного и(или) частичного ограничения режима потребления электрической энергии; "В" - внерегламентное отключение в соответствии с пунктом 47 Правил полного и (или) частичного ограничения режима потребления электрической энергии
A38: 3 указывается 0 (ноль), если прекращение передачи электрической энергии не включается в расчет показателей надежности, что соответствует кодам организационных причин аварии в соответствии с приложением N 2 приказа Минэнерго России N 90 и в соответствии с положениями Методических указаний утв. приказом МИНЭНЕРГО № 1256 ; указывается 1 (один), если прекращение передачи электрической энергии включается в расчет показателей надежности, что соответствует кодам организационных причин аварии в соответствии с приложением N 2 приказа Минэнерго России N 90 и в соответствии с положениями Методических указаний утв. приказом МИНЭНЕРГО № 1256 ;.

Sheet Корр. КНК
A2: Корректировка НВВ с учетом надежности и качества оказываемых услуг по результатам 2018 года
A4: ='Инф-я'!C9 -> АО "Технопарк"
A6: № п/п | B6: Наименование показателей | C6: Обзнач. в МУ | D6: По данным организации | E6: По данным экспертов
A7: 1 | B7: 2 | C7: 3 | D7: 4 | E7: 5
A8: 1. | B8: Оценка достижения показателя уровня надежности оказываемых услуг | D8: =(IF(AND(D22=0,E22=0),0,IF(AND(72<F22,F22<128),0,IF(F22>=128,-1,IF(F22<=72,1))))) -> 1 | E8: =(IF(AND(G22=0,D22=0),0,IF(AND(72<H22,H22<128),0,IF(H22>=128,-1,IF(H22<=72,1))))) -> 0
A9: 2. | B9: Оценка достижения показателя уровня качества осуществляемого технологического присоединения к сети | D9: =(IF(AND(D23=0,E23=0),0,IF(AND(72<F23,F23<128),0,IF(F23>=128,-1,IF(F23<=72,1))))) -> 0 | E9: =(IF(AND(G23=0,D23=0),0,IF(AND(72<H23,H23<128),0,IF(H23>=128,-1,IF(H23<=72,1))))) -> 1
A10: 3. | B10: Оценка достижения показателя уровня качества оказываемых услуг | D10: =(IF(AND(72<F24,F24<128),0,IF(F24>=128,-1,IF(F24<=72,1)))) -> 1 | E10: =(IF(AND(72<H24,H24<128),0,IF(H24>=128,-1,IF(H24<=72,1)))) -> 1
A11: 4. | B11: Обобщенный показатель уровня надежности и качества оказываемых услуг | D11: =D8*0.65+D9*0.25+D10*0.1 -> 0.75 | E11: =E8*0.65+E9*0.25+E10*0.1 -> 0.35
A12: 5. | B12: Максимальный процент корректировки, % | D12: 0.02 | E12: 0.02
A13: 6. | B13: Коэффициент, корректирующий НВВ с учетом надежности и качества оказываемых услуг | D13: =D11*D12 -> 0.015 | E13: =E11*E12 -> 0.007
A14: 7. | B14: Утвержденная НВВ на содержание электрических сетей (тыс. руб.) | D14: 25414.79
A15: 8. | B15: Величина корректировки НВВ с учетом надежности и качества оказываемых услуг | D15: =D13*D14 -> 381.22185 | E15: =E13*E14 -> 0
A17: Показатели уровня надежности и уровня качества оказываемых услуг
A19: № п/п | B19: Наименование показателей | C19: Обозначение в Методических указаниях | D19: Утверждено на 2018 год | E19: По данным организации | G19: По данным экспертов
E20: Факт | F20: % отклонения | G20: Факт | H20: % отклонения
A21: 1 | B21: 2 | C21: 3 | D21: 4 | E21: 5 | F21: 6 | G21: 7 | H21: 8
A22: 1. | B22: Показатель средней продолжительности прекращений передачи электрической энергии | D22: 0 | E22: ='Форма 1.2'!E8 -> 1.1492 | F22: =IF(D22=0,0,E22/D22*100) -> 0 | H22: =IF(D22=0,0,G22/D22*100) -> 0
A23: 2. | B23: Показатель уровня качества осуществляемого технологического присоединения к сети | D23: 1 | E23: ='форма 3 '!D37 -> 1 | F23: =IF(D23=0,0,E23/D23*100) -> 100 | H23: =IF(D23=0,0,G23/D23*100) -> 0
A24: 3. | B24: Показатель уровня качества обслуживания потребителей услуг | D24: 0 | E24: ='форма 2.4'!C14 -> 0.8828 | F24: =IF(D24=0,0,E24/D24*100) -> 0 | H24: =IF(D24=0,0,G24/D24*100) -> 0
A27: Руководитель организации | C27: ='Инф-я'!$C$17 -> Федулин Андрей Анатольевич
A30: Приказ Министерства энергетики РФ от 14 октября 2013 г. N 718 "Об утверждении Методических указаний по расчету уровня надежности и качества поставляемых товаров и оказываемых услуг для организации по управлению единой национальной (общероссийской) электрической сетью и территориальных сетевых организаций" (с изменениями и дополнениями) Методические указания по расчету уровня надежности и качества поставляемых товаров и оказываемых услуг для организации по управлению единой национальной (общероссийской) электрической сетью и территориальных сетевых организаций 4. Порядок определения плановых и фактических значений показателей надежности и качества услуг 4.3. Коэффициенты допустимого отклонения на первый долгосрочный период регулирования устанавливаются равными: для организации по управлению единой национальной (общероссийской) электрической сетью для показателя уровня надежности оказания услуг - 25% на первые три расчетных периода регулирования и 20% на следующие расчетные периоды регулирования первого долгосрочного периода регулирования, а для показателя уровня качества оказания услуг - 15%; для территориальных сетевых организаций, в отношении которых переход к регулированию цен (тарифов) на услуги по передаче электрической энергии в форме долгосрочных тарифов на основе долгосрочных параметров регулирования деятельности осуществлен до 1 июля 2010 г., - 30% на первые три расчетных периода регулирования и 25% на следующие расчетные периоды регулирования первого долгосрочного периода регулирования; для остальных территориальных сетевых организаций - 35% на первые три расчетных периода регулирования и 30% на следующие расчетные периоды регулирования первого долгосрочного периода регулирования. В последующие долгосрочные периоды регулирования коэффициенты снижаются в случае достижения показателей на 1% в год - до 15% для организации по управлению единой национальной (общероссийской) электрической сетью и до 25% для территориальных сетевых организаций.

Sheet Выбор оценочного балла (hidden)
A2: Выбор оценочного балла
A4: Принимаемое значение (Ф / П * 100, % ) (гр.4 форм 2.1-2.3) | C4: Оценочный балл (гр.6 форм 2.1 - 2.3)
A5: прямая зависимость (гр.5 форм 2.1 - 2.3) | B5: обратная зависимость (гр.5 форм 2.1 - 2.3)
A6: гр.4 форм 2.1-2.3 < 80% | B6: гр.4 форм 2.1-2.3 > 120 % | C6: 3 балла - для всех пунктов форм 2.1 - 2.3 кроме: 0,75 баллов - для п. 2, 5, 6 формы 2.2 0,3 балла - для п. 3,4,7 формы 2.2
A7: 80 % ≤ гр.4 форм 2.1-2.3 ≤ 120 % | C7: 2 балла - для всех пунктов форм 2.1 - 2.3 кроме: 0,5 баллов - для п. 2, 5, 6 формы 2.2 0,2 балла - для п. 3,4,7 формы 2.2
A8: гр.4 форм 2.1-2.3 > 120 % | B8: гр.4 форм 2.1-2.3 < 80% | C8: 1 балл - для всех пунктов форм 2.1 - 2.3 кроме: 0,25 баллов - для п. 2, 5, 6 формы 2.2 0,1 балла - для п. 3,4,7 формы 2.2
